[Event "RUS-chT Men Rapid 2019"]
[Site "Sochi"]
[Date "2019.10.18"]
[Round "2.2"]
[White "Triapishko, Alexandr"]
[Black "Shariyazdanov, Andrey"]
[Result "1/2-1/2"]
[ECO "B06"]
[WhiteElo "2514"]
[BlackElo "2519"]
[Annotator "ChessBase"]
[PlyCount "63"]
[EventDate "2019.10.18"]
[EventType "swiss"]
[EventCountry "RUS"]
[SourceTitle "playchess.com"]
[Source "ChessBase"]
[SourceQuality "1"]
[TimeControl "900+10"]

1. Nf3 {[%emt 0:01:45]} g6 {[%emt 0:00:00]} 2. e4 {[%emt 0:00:43]} Bg7 {[%emt 0:00:00]} 3. d4 {[%emt 0:00:01]} d6 {[%emt 0:00:01]} 4. c3 {[%emt 0:00:07]} Nf6 {[%emt 0:00:12]} 5. Bd3 {[%emt 0:00:14]} Nc6 {[%emt 0:00:16]} 6. O-O {[%emt 0:00:47]} O-O {[%emt 0:00:24]} 7. Nbd2 {[%emt 0:00:53]} e5 {[%emt 0:00:11]} 8. dxe5 {[%emt 0:00:11]} Nxe5 {[%emt 0:00:13]} 9. Nxe5 {[%emt 0:00:10]} dxe5 {[%emt 0:00:01]} 10. Nc4 {[%emt 0:01:09]} Qe7 {[%emt 0:00:10]} 11. a4 {[%emt 0:01:58]} Nh5 {[%emt 0:00:54]} 12. g3 {[%emt 0:00:31]} Bh3 {[%emt 0:00:24]} 13. Re1 {[%emt 0:00:24]} Rfd8 {[%emt 0:00:33]} 14. Qe2 {[%emt 0:02:52]} Nf6 {[%emt 0:01:12]} 15. f3 {[%emt 0:00:53]} Rd7 {[%emt 0:04:55]} 16. Be3 {[%emt 0:00:24]} h5 {[%emt 0:00:08]} 17. Rad1 {[%emt 0:00:29]} h4 {[%emt 0:00:13]} 18. Qf2 {[%emt 0:03:15]} hxg3 {[%emt 0:04:49]} 19. hxg3 {[%emt 0:00:15]} Rad8 {[%emt 0:02:04]} 20. Be2 {[%emt 0:00:06]} Rxd1 {[%emt 0:00:10]} 21. Rxd1 {[%emt 0:00:02]} Bd7 {[%emt 0:00:12]} 22. b3 {[%emt 0:00:30]} b6 {[%emt 0:00:01]} 23. Bf1 {[%emt 0:00:44]} Be6 {[%emt 0:00:21]} 24. Rxd8+ {[%emt 0:00:09]} Qxd8 {[%emt 0:00:01]} 25. Qd2 {[%emt 0:00:07]} Qxd2 {[%emt 0:00:08]} 26. Nxd2 {[%emt 0:00:09]} Nd7 {[%emt 0:00:15]} 27. b4 {[%emt 0:00:10]} f5 {[%emt 0:00:13]} 28. Bc4 {[%emt 0:00:11]} Kf7 {[%emt 0:00:03]} 29. Bxe6+ {[%emt 0:00:25]} Kxe6 {[%emt 0:00:01]} 30. Kf1 {[%emt 0:00:03]} Bf8 {[%emt 0:00:23]} 31. Ke2 {[%emt 0:00:06]} a6 {[%emt 0:00:06]} 32. Kd3 {[%emt 0:00:14]} 1/2-1/2

[Event "RUS-chT Men Rapid 2019"]
[Site "Sochi"]
[Date "2019.10.18"]
[Round "2.3"]
[White "Ulybin, Mikhail"]
[Black "Moiseenko, Vadim"]
[Result "0-1"]
[ECO "C70"]
[WhiteElo "2455"]
[BlackElo "2532"]
[Annotator "ChessBase"]
[PlyCount "88"]
[EventDate "2019.10.18"]
[EventType "swiss"]
[EventCountry "RUS"]
[SourceTitle "playchess.com"]
[Source "ChessBase"]
[SourceQuality "1"]
[TimeControl "900+10"]

1. e4 {[%emt 0:00:07]} e5 {[%emt 0:00:04]} 2. Nf3 {[%emt 0:00:06]} Nc6 {[%emt 0:00:03]} 3. Bb5 {[%emt 0:00:05]} a6 {[%emt 0:00:04]} 4. Ba4 {[%emt 0:00:04]} b5 {[%emt 0:00:32]} 5. Bb3 {[%emt 0:00:04]} Na5 {[%emt 0:00:01]} 6. d4 {[%emt 0:02:38]} exd4 {[%emt 0:00:02]} 7. Qxd4 {[%emt 0:00:22]} Bb7 {[%emt 0:00:21]} 8. Bg5 {[%emt 0:01:24]} f6 {[%emt 0:00:52]} 9. Bxg8 {[%emt 0:01:14]} fxg5 {[%emt 0:00:48]} 10. Bd5 {[%emt 0:01:06]} c6 {[%emt 0:00:11]} 11. Bb3 {[%emt 0:00:34]} c5 {[%emt 0:00:59]} 12. Qe5+ {[%emt 0:00:10]} Qe7 {[%emt 0:00:01]} 13. Bd5 {[%emt 0:01:06]} Qxe5 {[%emt 0:00:03]} 14. Nxe5 {[%emt 0:00:03]} Bxd5 {[%emt 0:00:01]} 15. exd5 {[%emt 0:00:03]} Bd6 {[%emt 0:00:15]} 16. Nf3 {[%emt 0:02:36]} g4 {[%emt 0:00:37]} 17. Nfd2 {[%emt 0:00:33]} O-O {[%emt 0:00:02]} 18. Nc3 {[%emt 0:02:31]} Rae8+ {[%emt 0:00:08]} 19. Nce4 {[%emt 0:00:15]} Nc4 {[%emt 0:00:57]} 20. O-O {[%emt 0:01:55]} Nxd2 {[%emt 0:00:07]} 21. Nxd6 {[%emt 0:00:13]} Re5 {[%emt 0:00:39]} 22. Rfe1 {[%emt 0:00:59]} Rxd5 {[%emt 0:00:11]} 23. Nb7 {[%emt 0:00:19]} c4 {[%emt 0:02:34]} 24. b4 {[%emt 0:00:11]} c3 {[%emt 0:00:25]} 25. a4 {[%emt 0:00:15]} Nc4 {[%emt 0:00:24]} 26. axb5 {[%emt 0:00:06]} axb5 {[%emt 0:00:02]} 27. Re2 {[%emt 0:00:12]} Rd2 {[%emt 0:00:25]} 28. Kf1 {[%emt 0:00:14]} Rxc2 {[%emt 0:02:49]} 29. Rxc2 {[%emt 0:00:04]} Ne3+ {[%emt 0:00:01]} 30. Ke2 {[%emt 0:00:07]} Nxc2 {[%emt 0:00:03]} 31. Rc1 {[%emt 0:00:04]} Nxb4 {[%emt 0:00:19]} 32. Rxc3 {[%emt 0:00:04]} Nd5 {[%emt 0:00:01]} 33. Rb3 {[%emt 0:00:21]} Rc8 {[%emt 0:01:14]} 34. Nd6 {[%emt 0:00:20]} Rc2+ {[%emt 0:00:02]} 35. Kd3 {[%emt 0:00:04]} Rc6 {[%emt 0:00:40]} 36. Nxb5 {[%emt 0:00:12]} Nf4+ {[%emt 0:00:01]} 37. Kd4 {[%emt 0:00:10]} Nxg2 {[%emt 0:00:40]} 38. Nc3 {[%emt 0:00:12]} h5 {[%emt 0:00:41]} 39. Ne4 {[%emt 0:00:08]} Nf4 {[%emt 0:00:32]} 40. Rb7 {[%emt 0:00:10]} d5 {[%emt 0:00:13]} 41. Ng5 {[%emt 0:00:08]} Rc8 {[%emt 0:00:59]} 42. Ke5 {[%emt 0:00:16]} Rf8 {[%emt 0:00:07]} 43. Rd7 {[%emt 0:00:12]} Ng6+ {[%emt 0:00:02]} 44. Kxd5 {[%emt 0:00:07]} Rf5+ {[%emt 0:00:01]} 0-1

[Event "RUS-chT Men Rapid 2019"]
[Site "Sochi"]
[Date "2019.10.18"]
[Round "2.4"]
[White "Rozum, Ivan"]
[Black "Pingin, Artem"]
[Result "0-1"]
[ECO "E16"]
[WhiteElo "2599"]
[BlackElo "2048"]
[Annotator "ChessBase"]
[PlyCount "105"]
[EventDate "2019.10.18"]
[EventType "swiss"]
[EventCountry "RUS"]
[SourceTitle "playchess.com"]
[Source "ChessBase"]
[SourceQuality "1"]
[TimeControl "900+10"]

1. d4 {[%emt 0:00:00]} Nf6 {[%emt 0:00:00]} 2. c4 {[%emt 0:00:02]} e6 {[%emt 0:00:00]} 3. Nf3 {[%emt 0:00:01]} b6 {[%emt 0:00:00]} 4. g3 {[%emt 0:00:02]} Bb7 {[%emt 0:00:00]} 5. Bg2 {[%emt 0:00:01]} Bb4+ {[%emt 0:00:00]} 6. Bd2 {[%emt 0:00:01]} Be7 {[%emt 0:00:00]} 7. O-O {[%emt 0:00:02]} O-O {[%emt 0:00:00]} 8. Nc3 {[%emt 0:00:02]} c6 {[%emt 0:00:01]} 9. Bf4 {[%emt 0:00:42]} d5 {[%emt 0:00:02]} 10. Rc1 {[%emt 0:00:11]} Nh5 {[%emt 0:01:57]} 11. Bd2 {[%emt 0:02:16]} Nf6 {[%emt 0:00:20]} 12. Bg5 {[%emt 0:01:32]} h6 {[%emt 0:00:37]} 13. Bxf6 {[%emt 0:00:03]} Bxf6 {[%emt 0:00:02]} 14. e4 {[%emt 0:00:08]} dxc4 {[%emt 0:00:03]} 15. e5 {[%emt 0:00:39]} Be7 {[%emt 0:00:04]} 16. Qe2 {[%emt 0:00:02]} b5 {[%emt 0:00:25]} 17. Ne4 {[%emt 0:00:03]} Nd7 {[%emt 0:00:31]} 18. b3 {[%emt 0:00:02]} Qa5 {[%emt 0:03:28]} 19. bxc4 bxc4 {[%emt 0:00:02]} 20. Nfd2 {[%emt 0:02:11]} Nb6 {[%emt 0:01:43]} 21. Qe3 {[%emt 0:01:52]} Rfd8 {[%emt 0:01:57]} 22. Nc5 {[%emt 0:00:23]} Bxc5 {[%emt 0:00:21]} 23. dxc5 {[%emt 0:00:01]} Qxd2 {[%emt 0:00:09]} 24. cxb6 {[%emt 0:02:57]} Qxe3 {[%emt 0:00:09]} 25. fxe3 {[%emt 0:00:01]} axb6 {[%emt 0:00:01]} 26. Rf2 {[%emt 0:00:08]} c3 {[%emt 0:02:12]} 27. Rxc3 {[%emt 0:00:47]} Rd1+ {[%emt 0:00:01]} 28. Rf1 {[%emt 0:02:19]} Rxf1+ {[%emt 0:00:03]} 29. Kxf1 {[%emt 0:00:01]} Rxa2 {[%emt 0:00:03]} 30. Kg1 {[%emt 0:00:21]} Ra5 {[%emt 0:00:35]} 31. Rd3 {[%emt 0:00:13]} Rxe5 {[%emt 0:00:45]} 32. Rd8+ {[%emt 0:00:01]} Kh7 {[%emt 0:00:01]} 33. Rd7 {[%emt 0:00:01]} Ba6 {[%emt 0:00:09]} 34. Bxc6 {[%emt 0:00:11]} Kg6 {[%emt 0:01:02]} 35. Ra7 {[%emt 0:00:01]} Bb5 {[%emt 0:00:06]} 36. Bf3 {[%emt 0:01:11]} Rxe3 {[%emt 0:00:11]} 37. Kf2 {[%emt 0:00:00]} Rb3 {[%emt 0:00:16]} 38. h4 {[%emt 0:00:02]} Bc4 {[%emt 0:00:43]} 39. Rd7 {[%emt 0:00:38]} Kf6 {[%emt 0:00:38]} 40. g4 {[%emt 0:00:22]} g6 {[%emt 0:00:37]} 41. Rd8 {[%emt 0:00:53]} Rb5 {[%emt 0:00:20]} 42. Ke3 {[%emt 0:00:33]} Bd5 {[%emt 0:00:05]} 43. Bd1 {[%emt 0:00:15]} Rb4 {[%emt 0:00:09]} 44. h5 {[%emt 0:00:24]} b5 {[%emt 0:00:50]} 45. hxg6 {[%emt 0:00:05]} Kxg6 {[%emt 0:00:05]} 46. Rb8 {[%emt 0:00:12]} Kg7 {[%emt 0:00:04]} 47. Be2 {[%emt 0:00:06]} Rb3+ {[%emt 0:00:20]} 48. Kd4 {[%emt 0:00:04]} b4 {[%emt 0:00:03]} 49. Bd1 {[%emt 0:00:14]} Rb2 {[%emt 0:00:03]} 50. Ke5 {[%emt 0:00:14]} b3 {[%emt 0:00:11]} 51. g5 {[%emt 0:00:22]} hxg5 {[%emt 0:00:06]} 52. Bh5 {[%emt 0:00:01]} Rh2 {[%emt 0:00:09]} 53. Kd4 0-1

[Event "RUS-chT Men Rapid 2019"]
[Site "Sochi"]
[Date "2019.10.18"]
[Round "2.6"]
[White "Khegay, Dmitriy"]
[Black "Potkin, Vladimir"]
[Result "0-1"]
[ECO "B53"]
[WhiteElo "2509"]
[BlackElo "2583"]
[Annotator "ChessBase"]
[PlyCount "100"]
[EventDate "2019.10.18"]
[EventType "swiss"]
[EventCountry "RUS"]
[SourceTitle "playchess.com"]
[Source "ChessBase"]
[SourceQuality "1"]
[TimeControl "900+10"]

1. e4 {[%emt 0:00:00]} c5 {[%emt 0:00:00]} 2. Nf3 {[%emt 0:00:00]} d6 {[%emt 0:00:00]} 3. d4 {[%emt 0:00:00]} cxd4 {[%emt 0:00:00]} 4. Qxd4 {[%emt 0:00:00]} Nf6 {[%emt 0:00:00]} 5. c4 {[%emt 0:00:55]} Nc6 {[%emt 0:00:01]} 6. Qe3 {[%emt 0:00:01]} e6 {[%emt 0:02:02]} 7. Be2 {[%emt 0:00:01]} Be7 {[%emt 0:00:02]} 8. O-O {[%emt 0:00:02]} O-O {[%emt 0:00:02]} 9. Rd1 {[%emt 0:00:04]} Re8 {[%emt 0:00:23]} 10. Nc3 {[%emt 0:00:07]} Bd7 {[%emt 0:00:58]} 11. h3 {[%emt 0:00:02]} Rc8 {[%emt 0:00:41]} 12. b3 {[%emt 0:00:02]} Qa5 {[%emt 0:01:04]} 13. Bb2 {[%emt 0:00:05]} a6 {[%emt 0:00:24]} 14. Rac1 {[%emt 0:01:05]} Ne5 {[%emt 0:00:05]} 15. Nd4 {[%emt 0:00:32]} Bf8 {[%emt 0:00:32]} 16. Kh1 {[%emt 0:00:51]} g6 {[%emt 0:03:03]} 17. f4 {[%emt 0:02:34]} Nc6 {[%emt 0:00:22]} 18. Nxc6 {[%emt 0:00:04]} Bxc6 {[%emt 0:00:02]} 19. e5 {[%emt 0:00:02]} dxe5 {[%emt 0:00:38]} 20. fxe5 {[%emt 0:00:01]} Nd7 {[%emt 0:00:06]} 21. Rxd7 {[%emt 0:00:07]} Bxd7 {[%emt 0:00:09]} 22. Ne4 {[%emt 0:00:01]} Bg7 {[%emt 0:01:03]} 23. Bc3 {[%emt 0:02:34]} Qc7 {[%emt 0:00:57]} 24. Rd1 {[%emt 0:01:59]} Bc6 {[%emt 0:01:21]} 25. Nf6+ {[%emt 0:00:26]} Kh8 {[%emt 0:01:14]} 26. Rd4 {[%emt 0:01:13]} Qb6 {[%emt 0:00:41]} 27. Qg5 {[%emt 0:02:36]} Qc5 {[%emt 0:01:57]} 28. Rh4 {[%emt 0:02:57]} Bxf6 {[%emt 0:00:15]} 29. Qxf6+ {[%emt 0:00:01]} Kg8 {[%emt 0:00:01]} 30. Bd2 {[%emt 0:00:17]} Qe7 {[%emt 0:00:13]} 31. Qf4 {[%emt 0:00:01]} Rcd8 {[%emt 0:00:47]} 32. Qh6 {[%emt 0:00:07]} f6 {[%emt 0:00:09]} 33. exf6 {[%emt 0:00:03]} Qf7 {[%emt 0:00:01]} 34. Bc3 {[%emt 0:01:13]} e5 {[%emt 0:00:08]} 35. Qg5 {[%emt 0:00:02]} Rd6 {[%emt 0:00:44]} 36. Qe3 {[%emt 0:00:38]} Rxf6 {[%emt 0:00:06]} 37. Rg4 {[%emt 0:00:04]} Rf4 {[%emt 0:00:18]} 38. Rg5 {[%emt 0:00:04]} Rf5 {[%emt 0:00:12]} 39. Rg3 {[%emt 0:00:14]} Qf6 {[%emt 0:00:24]} 40. b4 {[%emt 0:00:14]} Qf7 {[%emt 0:00:11]} 41. Kh2 {[%emt 0:00:04]} Rf4 {[%emt 0:00:05]} 42. Bd3 {[%emt 0:00:15]} Rf6 {[%emt 0:00:16]} 43. Rg5 {[%emt 0:00:12]} Rfe6 {[%emt 0:00:07]} 44. Rg3 {[%emt 0:00:08]} Qf4 {[%emt 0:00:06]} 45. Qc5 {[%emt 0:00:01]} h5 {[%emt 0:00:20]} 46. h4 {[%emt 0:00:01]} Qxh4+ {[%emt 0:00:01]} 47. Rh3 {[%emt 0:00:00]} Qf4+ {[%emt 0:00:01]} 48. Kg1 {[%emt 0:00:26]} Qc1+ {[%emt 0:00:04]} 49. Kh2 {[%emt 0:00:08]} Qxc3 {[%emt 0:00:12]} 50. Bxg6 {[%emt 0:00:01]} Qd4 {[%emt 0:00:02]} 0-1

[Event "RUS-chT Men Rapid 2019"]
[Site "Sochi"]
[Date "2019.10.18"]
[Round "2.9"]
[White "Zakaryan, David"]
[Black "Bocharov, Dmitry"]
[Result "0-1"]
[ECO "B43"]
[WhiteElo "2338"]
[BlackElo "2519"]
[Annotator "ChessBase"]
[PlyCount "84"]
[EventDate "2019.10.18"]
[EventType "swiss"]
[EventCountry "RUS"]
[SourceTitle "playchess.com"]
[Source "ChessBase"]
[SourceQuality "1"]
[TimeControl "900+10"]

1. e4 {[%emt 0:00:00]} c5 {[%emt 0:00:00]} 2. Nc3 {[%emt 0:00:02]} e6 {[%emt 0:00:00]} 3. Nf3 {[%emt 0:00:06]} a6 {[%emt 0:00:02]} 4. d4 {[%emt 0:00:02]} cxd4 {[%emt 0:00:02]} 5. Nxd4 {[%emt 0:00:02]} Qc7 {[%emt 0:00:04]} 6. Be3 {[%emt 0:00:07]} Bb4 {[%emt 0:00:38]} 7. Nde2 {[%emt 0:00:10]} Nf6 {[%emt 0:00:18]} 8. a3 {[%emt 0:00:02]} Be7 {[%emt 0:00:56]} 9. h3 {[%emt 0:00:57]} Nc6 {[%emt 0:01:05]} 10. f4 {[%emt 0:00:21]} d6 {[%emt 0:03:02]} 11. g4 {[%emt 0:00:14]} b5 {[%emt 0:00:06]} 12. g5 {[%emt 0:00:06]} Nd7 {[%emt 0:00:02]} 13. Ng3 {[%emt 0:01:22]} Bb7 {[%emt 0:00:18]} 14. h4 {[%emt 0:05:43]} b4 {[%emt 0:00:46]} 15. axb4 {[%emt 0:00:55]} Nxb4 {[%emt 0:00:02]} 16. Bg2 {[%emt 0:01:10]} Nb6 {[%emt 0:00:44]} 17. O-O {[%emt 0:00:40]} Nc4 {[%emt 0:00:04]} 18. Bd4 {[%emt 0:01:39]} O-O {[%emt 0:00:16]} 19. b3 {[%emt 0:01:32]} Ne3 {[%emt 0:01:24]} 20. Bxe3 {[%emt 0:00:20]} Qxc3 {[%emt 0:00:02]} 21. Qd2 {[%emt 0:00:59]} Qxd2 {[%emt 0:01:49]} 22. Bxd2 {[%emt 0:00:01]} Nxc2 {[%emt 0:00:02]} 23. Ra4 {[%emt 0:00:13]} Rfc8 {[%emt 0:00:22]} 24. f5 {[%emt 0:00:01]} Bc6 {[%emt 0:01:05]} 25. Ra2 {[%emt 0:00:56]} Nd4 {[%emt 0:00:10]} 26. f6 {[%emt 0:00:01]} Bf8 {[%emt 0:00:17]} 27. Bc3 {[%emt 0:00:09]} Nxb3 {[%emt 0:01:49]} 28. fxg7 {[%emt 0:00:02]} Bxg7 {[%emt 0:00:04]} 29. Bxg7 {[%emt 0:00:02]} Kxg7 {[%emt 0:00:17]} 30. Raf2 {[%emt 0:00:29]} Be8 {[%emt 0:00:46]} 31. Rf6 {[%emt 0:00:07]} Rc1 {[%emt 0:00:19]} 32. Nh5+ {[%emt 0:00:16]} Kf8 {[%emt 0:00:02]} 33. Rxc1 {[%emt 0:00:24]} Nxc1 {[%emt 0:00:02]} 34. e5 {[%emt 0:00:10]} d5 {[%emt 0:00:13]} 35. Nf4 {[%emt 0:00:02]} Kg8 {[%emt 0:00:21]} 36. h5 {[%emt 0:00:04]} a5 {[%emt 0:01:17]} 37. g6 {[%emt 0:00:01]} a4 {[%emt 0:00:02]} 38. Nxd5 {[%emt 0:00:44]} Ra7 {[%emt 0:00:46]} 39. gxh7+ {[%emt 0:00:47]} Kh8 {[%emt 0:00:20]} 40. Rf1 {[%emt 0:00:04]} Ne2+ {[%emt 0:00:03]} 41. Kf2 {[%emt 0:00:01]} exd5 {[%emt 0:00:04]} 42. Kxe2 {[%emt 0:00:02]} Bb5+ {[%emt 0:00:02]} 0-1

[Event "RUS-chT Men Rapid 2019"]
[Site "Sochi"]
[Date "2019.10.18"]
[Round "2.14"]
[White "Vakhlamov, Igor L."]
[Black "Pridorozhni, Aleksei"]
[Result "0-1"]
[ECO "B40"]
[WhiteElo "2413"]
[BlackElo "2599"]
[Annotator "RC"]
[PlyCount "90"]
[EventDate "2019.10.18"]
[EventType "swiss"]
[EventCountry "RUS"]
[SourceTitle "playchess.com"]
[Source "ChessBase"]
[SourceQuality "1"]
[TimeControl "900+10"]

1. e4 {[%emt 0:00:00]} c5 {[%emt 0:00:00]} 2. Nf3 {[%emt 0:00:00]} e6 {[%emt 0:00:00]} 3. g3 {[%emt 0:00:00]} d5 {[%emt 0:00:00]} 4. exd5 exd5 {[%emt 0:00:00]} 5. Bg2 {[%emt 0:00:03]} Qe7+ {[%emt 0:00:00]} 6. Qe2 {[%emt 0:01:20]} Qxe2+ 7. Kxe2 {[%emt 0:00:02]} Nc6 {[%emt 0:00:05]} 8. Re1 {[%emt 0:00:10]} h6 {[%emt 0:00:06]} 9. Kf1+ {[%emt 0:00:47]} Be6 {[%emt 0:00:03]} 10. Ne5 {[%emt 0:02:37]} Nxe5 {[%emt 0:01:01]} 11. Rxe5 {[%emt 0:00:02]} Ne7 {[%emt 0:00:07]} 12. d3 {[%emt 0:00:45]} Nc6 {[%emt 0:00:08]} 13. Re1 {[%emt 0:00:03]} O-O-O {[%emt 0:00:09]} 14. Bd2 {[%emt 0:02:31]} g5 {[%emt 0:00:57]} 15. Nc3 {[%emt 0:00:37]} Nd4 {[%emt 0:00:26]} 16. Rac1 {[%emt 0:00:40]} Bg7 {[%emt 0:00:02]} 17. b3 {[%emt 0:01:20]} Bf6 {[%emt 0:01:20]} 18. Ne2 {[%emt 0:00:43]} Nc6 {[%emt 0:01:01]} 19. f4 {[%emt 0:00:27]} g4 {[%emt 0:00:16]} 20. a3 {[%emt 0:03:46]} h5 {[%emt 0:02:19]} 21. b4 {[%emt 0:00:15]} c4 {[%emt 0:00:11]} 22. dxc4 {[%emt 0:00:13]} dxc4 {[%emt 0:00:03]} 23. Bc3 {[%emt 0:00:22]} Bxc3 {[%emt 0:00:04]} 24. Nxc3 {[%emt 0:00:02]} Nd4 {[%emt 0:00:02]} 25. Ne2 {[%emt 0:01:27]} Nf5 {[%emt 0:00:47]} 26. Kf2 {[%emt 0:00:02]} Rd2 {[%emt 0:00:14]} 27. Red1 {[%emt 0:01:00]} Rhd8 {[%emt 0:00:02]} 28. Rxd2 {[%emt 0:00:06]} Rxd2 {[%emt 0:00:02]} 29. Ke1 {[%emt 0:00:10]} c3 {[%emt 0:00:09]} 30. Be4 {[%emt 0:00:01]} Ne3 {[%emt 0:00:17]} 31. Bd3 {[%emt 0:00:02]} Bf5 {[%emt 0:00:19]} 32. Bxf5+ {[%emt 0:00:35]} Nxf5 {[%emt 0:00:02]} 33. Nxc3 {[%emt 0:00:06]} Rxh2 {[%emt 0:00:03]} 34. Ne2 {[%emt 0:00:08]} h4 {[%emt 0:02:02]} 35. gxh4 {[%emt 0:00:01]} Rxh4 {[%emt 0:00:01]} 36. Kf1 {[%emt 0:00:26]} Rh2 {[%emt 0:00:07]} 37. Re1 {[%emt 0:00:09]} g3 {[%emt 0:01:37]} 38. Kg1 {[%emt 0:00:01]} Nh4 {[%emt 0:00:03]} 39. Nd4 {[%emt 0:00:11]} Rg2+ {[%emt 0:00:21]} 40. Kh1 {[%emt 0:00:04]} Rf2 {[%emt 0:00:01]} 41. f5 {[%emt 0:00:13]} Rh2+ {[%emt 0:00:49]} 42. Kg1 {[%emt 0:00:01]} Rd2 {[%emt 0:00:02]} 43. c3 {[%emt 0:00:27]} Rxd4 {[%emt 0:00:05]} 44. cxd4 {[%emt 0:00:03]} Nf3+ {[%emt 0:00:01]} 45. Kf1 {[%emt 0:00:01]} g2+ {[%emt 0:00:02]} 0-1

[Event "RUS-chT Men Rapid 2019"]
[Site "Sochi"]
[Date "2019.10.18"]
[Round "2.16"]
[White "Frolov, Aleksey G."]
[Black "Belyakov, Bogdan"]
[Result "0-1"]
[ECO "C67"]
[WhiteElo "2093"]
[BlackElo "2495"]
[Annotator "ChessBase"]
[PlyCount "96"]
[EventDate "2019.10.18"]
[EventType "swiss"]
[EventCountry "RUS"]
[SourceTitle "playchess.com"]
[Source "ChessBase"]
[SourceQuality "1"]
[TimeControl "900+10"]

1. e4 {[%emt 0:00:00]} Nc6 {[%emt 0:00:00]} 2. Nf3 {[%emt 0:00:00]} e5 {[%emt 0:00:00]} 3. Bb5 {[%emt 0:00:00]} Nf6 {[%emt 0:00:00]} 4. O-O {[%emt 0:00:06]} Nxe4 {[%emt 0:00:00]} 5. d4 {[%emt 0:00:02]} Nd6 {[%emt 0:00:03]} 6. dxe5 {[%emt 0:00:02]} Nxb5 {[%emt 0:00:13]} 7. a4 {[%emt 0:00:02]} d6 {[%emt 0:00:12]} 8. axb5 {[%emt 0:00:35]} Nxe5 {[%emt 0:00:05]} 9. Re1 {[%emt 0:00:13]} Be7 {[%emt 0:00:08]} 10. Nxe5 {[%emt 0:00:00]} dxe5 {[%emt 0:00:03]} 11. Qxd8+ Kxd8 {[%emt 0:00:02]} 12. Nc3 {[%emt 0:00:30]} f6 {[%emt 0:01:12]} 13. Be3 {[%emt 0:00:45]} b6 {[%emt 0:05:38]} 14. Red1+ {[%emt 0:00:20]} Ke8 {[%emt 0:00:08]} 15. Nd5 {[%emt 0:00:11]} Bd8 {[%emt 0:00:04]} 16. Nb4 {[%emt 0:00:42]} Bb7 {[%emt 0:00:28]} 17. Nc6 {[%emt 0:01:27]} Be7 {[%emt 0:02:45]} 18. Nxa7 {[%emt 0:01:23]} Kf7 {[%emt 0:00:15]} 19. f3 {[%emt 0:00:54]} Ke6 {[%emt 0:00:12]} 20. Ra4 {[%emt 0:01:38]} Rhd8 {[%emt 0:00:12]} 21. Rxd8 {[%emt 0:01:28]} Rxd8 {[%emt 0:00:07]} 22. Rc4 {[%emt 0:00:12]} Rd1+ {[%emt 0:01:29]} 23. Kf2 {[%emt 0:00:02]} Bd6 {[%emt 0:00:19]} 24. Nc6 {[%emt 0:00:11]} Ba8 {[%emt 0:02:38]} 25. Nb4 {[%emt 0:01:42]} Bd5 {[%emt 0:01:35]} 26. Rh4 {[%emt 0:01:05]} g5 {[%emt 0:00:02]} 27. Nxd5 {[%emt 0:00:54]} gxh4 {[%emt 0:00:02]} 28. Nc3 {[%emt 0:00:06]} Ra1 {[%emt 0:00:04]} 29. Ke2 {[%emt 0:00:14]} f5 {[%emt 0:00:05]} 30. Bf2 {[%emt 0:00:06]} Be7 {[%emt 0:00:21]} 31. h3 {[%emt 0:00:10]} Ra5 {[%emt 0:00:10]} 32. Kd3 {[%emt 0:00:18]} Bb4 {[%emt 0:00:08]} 33. Ne2 {[%emt 0:01:05]} Rxb5 {[%emt 0:00:13]} 34. c4 {[%emt 0:00:01]} Ra5 {[%emt 0:00:04]} 35. Bxh4 {[%emt 0:00:01]} Ra1 {[%emt 0:00:07]} 36. Kc2 {[%emt 0:00:34]} Rh1 {[%emt 0:00:08]} 37. Bd8 {[%emt 0:00:29]} Bd6 {[%emt 0:00:09]} 38. f4 {[%emt 0:01:34]} Rh2 {[%emt 0:00:13]} 39. Kd3 {[%emt 0:01:27]} Rxg2 {[%emt 0:00:04]} 40. b4 {[%emt 0:00:01]} exf4 {[%emt 0:00:29]} 41. Nd4+ {[%emt 0:00:45]} Kd7 {[%emt 0:00:03]} 42. Bh4 {[%emt 0:00:05]} Rh2 {[%emt 0:00:10]} 43. Nxf5 {[%emt 0:00:01]} Rxh3+ {[%emt 0:00:16]} 44. Ke4 {[%emt 0:00:01]} Bxb4 {[%emt 0:00:15]} 45. Bf6 {[%emt 0:00:30]} Bd6 {[%emt 0:00:10]} 46. Bd4 {[%emt 0:00:14]} Rh1 {[%emt 0:00:03]} 47. c5 {[%emt 0:00:29]} bxc5 {[%emt 0:00:04]} 48. Bc3 {[%emt 0:00:04]} Kc6 {[%emt 0:00:08]} 0-1

[Event "RUS-chT Men Rapid 2019"]
[Site "Sochi"]
[Date "2019.10.18"]
[Round "2.17"]
[White "Nesterov, Arseniy"]
[Black "Timofeev, Artyom"]
[Result "0-1"]
[ECO "A04"]
[WhiteElo "2484"]
[BlackElo "2595"]
[Annotator "ChessBase"]
[PlyCount "68"]
[EventDate "2019.10.18"]
[EventType "swiss"]
[EventCountry "RUS"]
[SourceTitle "playchess.com"]
[Source "ChessBase"]
[SourceQuality "1"]
[TimeControl "900+10"]

1. Nf3 {[%emt 0:00:00]} d6 {[%emt 0:00:00]} 2. d4 {[%emt 0:00:00]} Nf6 {[%emt 0:00:00]} 3. c4 {[%emt 0:00:00]} c5 {[%emt 0:00:11]} 4. d5 {[%emt 0:00:15]} e5 {[%emt 0:00:02]} 5. Nc3 {[%emt 0:00:07]} Bg4 {[%emt 0:00:04]} 6. h3 {[%emt 0:00:08]} Bxf3 7. exf3 {[%emt 0:00:03]} g6 {[%emt 0:00:06]} 8. Bd3 {[%emt 0:00:10]} Bg7 {[%emt 0:00:06]} 9. O-O {[%emt 0:00:05]} O-O {[%emt 0:00:03]} 10. f4 {[%emt 0:00:04]} Bh6 {[%emt 0:00:14]} 11. fxe5 {[%emt 0:00:46]} Bxc1 12. Qxc1 {[%emt 0:00:17]} dxe5 {[%emt 0:00:05]} 13. Qe3 {[%emt 0:00:11]} Nbd7 {[%emt 0:00:02]} 14. Bc2 {[%emt 0:00:05]} Rc8 {[%emt 0:00:26]} 15. f4 {[%emt 0:02:27]} exf4 {[%emt 0:00:04]} 16. Qxf4 {[%emt 0:00:02]} Nh5 {[%emt 0:00:06]} 17. Qf2 {[%emt 0:00:46]} Ne5 {[%emt 0:00:08]} 18. g4 {[%emt 0:03:04]} Ng7 {[%emt 0:00:04]} 19. Qf4 {[%emt 0:01:20]} f6 {[%emt 0:00:32]} 20. Ne4 {[%emt 0:00:37]} Ne8 {[%emt 0:00:20]} 21. Ba4 {[%emt 0:00:54]} Nd7 {[%emt 0:00:03]} 22. Rae1 {[%emt 0:00:57]} a6 {[%emt 0:00:36]} 23. Bxd7 {[%emt 0:03:01]} Qxd7 {[%emt 0:00:03]} 24. Nc3 {[%emt 0:00:43]} f5 {[%emt 0:01:26]} 25. Re5 {[%emt 0:00:59]} Nd6 {[%emt 0:00:10]} 26. Re6 {[%emt 0:00:15]} Rcd8 {[%emt 0:00:22]} 27. g5 {[%emt 0:00:18]} b5 {[%emt 0:00:47]} 28. Rfe1 {[%emt 0:00:33]} Rf7 {[%emt 0:00:33]} 29. cxb5 {[%emt 0:00:55]} axb5 {[%emt 0:00:10]} 30. b4 {[%emt 0:00:09]} cxb4 {[%emt 0:00:37]} 31. Qxb4 {[%emt 0:00:02]} Qc7 {[%emt 0:00:02]} 32. Kf1 {[%emt 0:00:44]} Ne4 {[%emt 0:00:20]} 33. Nxb5 {[%emt 0:00:14]} Qf4+ {[%emt 0:00:05]} 34. Ke2 {[%emt 0:00:07]} Ng3+ {[%emt 0:00:08]} 0-1